bitfinex/quotes_SOLUSD_20250609
["timestamp","ask_amount","ask_price","bid_price","bid_amount"]
[1749482695039,4.82086558,155.32,155.29,9.55625252]
[1749482695336,4.82086558,155.31,155.29,9.55625252]
[1749482695550,4.82160632,155.3,155.27,10.46]
[1749482695727,11.15165252,155.32,155.27,20.01625252]
[1749482696043,4.82171465,155.31,155.27,20.01625252]
[1749482696218,6.43956468,155.29,155.27,20.01625252]
[1749482698318,22.53592267,155.31,155.27,20.01625252]
[1749482698515,4.82195119,155.3,155.27,20.01625252]
[1749482698718,4.82195119,155.29,155.27,20.01625252]
[1749482699019,22.53592267,155.31,155.27,20.01625252]
[1749482699346,4.82165644,155.3,155.27,20.01625252]
[1749482699553,22.53592267,155.31,155.27,20.01625252]
[1749482699716,4.82156583,155.3,155.27,20.01625252]
[1749482699914,22.53592267,155.31,155.27,20.01625252]
[1749482700115,4.82156254,155.3,155.27,20.01625252]
[1749482700318,22.53592267,155.31,155.27,20.01625252]
[1749482700525,6.43956468,155.29,155.27,20.01625252]
[1749482702511,22.53592267,155.31,155.27,20.01625252]
[1749482702712,22.53592267,155.31,155.27,10.46]
[1749482702713,14.37714492,155.3,155.27,10.46]
[1749482702938,4.8208924,155.29,155.27,10.46]
[1749482703135,9.55625252,155.3,155.27,10.46]
[1749482703385,4.82051357,155.29,155.27,10.46]
[1749482703532,32.09217519,155.31,155.27,10.46]
[1749482703739,4.82057828,155.3,155.29,9.55625252]
[1749482704055,6.43873543,155.31,155.28,9.55625252]
[1749482704225,4.82000636,155.3,155.27,20.01625252]
[1749482704423,6.43873543,155.31,155.27,20.01625252]
[1749482704623,6.43956468,155.29,155.27,20.01625252]
[1749482705723,6.43956468,155.29,155.27,9.55625252]
[1749482706925,11.25823315,155.31,155.27,9.55625252]
[1749482707230,4.81949772,155.3,155.27,9.55625252]
[1749482707432,6.43873543,155.31,155.27,9.55625252]
[1749482707617,4.81918369,155.3,155.27,9.55625252]
[1749482707817,6.43873543,155.31,155.27,9.55625252]
[1749482708013,4.81918369,155.3,155.27,9.55625252]
[1749482708219,6.43873543,155.31,155.27,9.55625252]
[1749482708431,4.81903145,155.3,155.27,9.55625252]
[1749482708730,6.43873543,155.31,155.28,9.55625252]
[1749482713143,6.43956468,155.29,155.28,9.55625252]
[1749482713556,4.81957188,155.31,155.28,9.55625252]
[1749482713759,6.43886934,155.31,155.3,9.55625252]
[1749482715354,11.25861476,155.31,155.29,28.20590138]
[1749482715660,6.43886934,155.31,155.29,28.20590138]
[1749482715822,6.43886934,155.31,155.3,9.55625252]
[1749482717442,6.43886934,155.31,155.29,9.55625252]
[1749482718942,6.43886934,155.31,155.3,9.55625252]
[1749482724751,6.43790639,155.33,155.3,9.55625252]
[1749482724941,4.82148049,155.32,155.3,9.55625252]
[1749482725140,6.43790639,155.33,155.3,9.55625252]
[1749482725368,4.82147872,155.32,155.3,9.55625252]
[1749482725565,6.43790639,155.33,155.3,9.55625252]
[1749482725908,4.8215063,155.32,155.3,9.55625252]
[1749482726045,6.43790639,155.33,155.3,9.55625252]
[1749482726247,4.82140366,155.32,155.3,9.55625252]
[1749482726458,6.43790639,155.33,155.3,9.55625252]
[1749482726639,4.82143748,155.32,155.3,9.55625252]
[1749482726949,6.43790639,155.33,155.3,9.55625252]
[1749482727152,6.43873543,155.31,155.3,9.55625252]
[1749482727769,11.26036078,155.31,155.3,9.55625252]
[1749482727971,6.43873543,155.31,155.3,9.55625252]
[1749482728765,6.43790639,155.33,155.3,9.55625252]
[1749482728967,4.82144504,155.32,155.3,9.55625252]
[1749482729176,6.43790639,155.33,155.31,9.55625252]
[1749482729342,6.43790639,155.33,155.32,9.55625252]
[1749482729544,11.25831535,155.33,155.31,9.55625252]
[1749482729767,6.43790639,155.33,155.31,9.55625252]
[1749482730592,6.43707756,155.35,155.31,9.55625252]
[1749482730796,4.81990523,155.34,155.31,9.55625252]
[1749482730984,4.81990523,155.33,155.31,9.55625252]
[1749482731292,22.52977147,155.35,155.31,9.55625252]
[1749482731594,4.81957815,155.34,155.31,9.55625252]
[1749482731784,4.81957815,155.33,155.31,9.55625252]
[1749482731994,22.52977147,155.35,155.31,9.55625252]
[1749482732159,4.81947602,155.34,155.31,9.55625252]
[1749482732359,4.81947602,155.33,155.31,9.55625252]
[1749482732654,32.08602399,155.35,155.31,9.55625252]
[1749482732855,4.81927701,155.34,155.31,9.55625252]
[1749482733060,4.81927701,155.33,155.31,9.55625252]
[1749482733278,32.08602399,155.35,155.31,9.55625252]
[1749482733490,6.43790639,155.33,155.31,9.55625252]
[1749482736196,6.43749195,155.34,155.31,9.55625252]
[1749482736386,4.81802677,155.33,155.31,9.55625252]
[1749482736590,6.43749195,155.34,155.31,9.55625252]
[1749482736784,4.81802677,155.33,155.31,9.55625252]
[1749482737096,6.43749195,155.34,155.31,9.55625252]
[1749482737302,6.43832088,155.32,155.31,9.55625252]
[1749482738373,6.43749195,155.34,155.31,9.55625252]
[1749482739575,6.43832088,155.32,155.31,9.55625252]
[1749482740593,6.43790639,155.33,155.31,9.55625252]
[1749482741777,6.43749195,155.34,155.29,18.64964886]
[1749482741976,6.43749195,155.34,155.29,9.55625252]
[1749482741977,4.81693842,155.33,155.29,9.55625252]
[1749482742305,32.08747435,155.34,155.29,9.55625252]
[1749482742484,4.81748518,155.33,155.29,9.55625252]
[1749482742688,32.08747435,155.34,155.3,9.55625252]
[1749482742872,4.81748513,155.33,155.3,9.55625252]
[1749482743079,22.53122183,155.34,155.3,9.55625252]
[1749482743288,4.81769814,155.33,155.3,9.55625252]
[1749482743579,22.53122183,155.34,155.3,9.55625252]
[1749482743803,6.43832088,155.32,155.3,9.55625252]
[1749482746213,6.43832088,155.32,155.29,9.55625252]
[1749482747895,22.53122183,155.34,155.29,9.55625252]
[1749482748209,4.81889095,155.33,155.29,9.55625252]
[1749482748456,22.53122183,155.34,155.29,9.55625252]
[1749482748457,4.81889095,155.32,155.29,9.55625252]
[1749482748582,22.53122183,155.34,155.29,9.55625252]
[1749482748787,4.81963606,155.33,155.29,9.55625252]
[1749482749087,4.81963606,155.32,155.29,9.55625252]
[1749482749280,32.08747435,155.34,155.29,9.55625252]
[1749482749515,4.81973518,155.33,155.29,9.55625252]
[1749482749685,4.81973518,155.32,155.29,9.55625252]
[1749482749880,32.08747435,155.34,155.29,9.55625252]
[1749482750084,4.81974489,155.33,155.29,9.55625252]
[1749482750291,4.81974489,155.32,155.29,9.55625252]
[1749482750504,22.53122183,155.34,155.29,9.55625252]
[1749482750812,4.82021966,155.33,155.29,9.55625252]
[1749482751011,4.82021966,155.32,155.29,9.55625252]
[1749482751190,22.53122183,155.34,155.3,9.55625252]
[1749482751396,4.82097727,155.33,155.3,9.55625252]
[1749482751608,4.82097727,155.32,155.3,9.55625252]
[1749482751818,22.53122183,155.34,155.3,9.55625252]
[1749482752113,6.43832088,155.32,155.3,9.55625252]
[1749482752628,4.82171765,155.31,155.3,9.55625252]
[1749482752999,22.53122183,155.34,155.3,9.55625252]
[1749482753196,4.8217095,155.33,155.3,9.55625252]
[1749482753433,4.8217095,155.32,155.3,9.55625252]
[1749482753624,4.8217095,155.31,155.3,9.55625252]
[1749482755129,11.26044493,155.31,155.3,9.55625252]
[1749482756404,11.26044493,155.31,155.29,9.55625252]
[1749482756734,8.02343543,155.31,155.25,87.7]
[1749482756923,14.37975807,155.3,155.24,18.64964886]
[1749482757126,6.43997939,155.28,155.25,9.55625252]
[1749482757625,6.43997939,155.28,155.26,9.55625252]
[1749482758319,6.43997939,155.28,155.27,9.55625252]
[1749482758910,6.43997939,155.28,155.26,9.55625252]
[1749482759306,11.26078277,155.29,155.26,9.55625252]
[1749482759639,6.43956468,155.29,155.26,9.55625252]
[1749482760517,4.82063875,155.28,155.26,9.55625252]
[1749482760713,6.43956468,155.29,155.26,9.55625252]
[1749482761037,4.82063875,155.28,155.26,9.55625252]
[1749482761204,6.43956468,155.29,155.26,9.55625252]
[1749482761408,4.82052037,155.28,155.26,9.55625252]
[1749482761715,6.43956468,155.29,155.26,9.55625252]
[1749482762518,14.37571939,155.28,155.23,10.4]
[1749482762729,4.81880107,155.27,155.23,10.4]
[1749482762932,32.09472891,155.29,155.25,9.55625252]
[1749482763119,4.81879635,155.28,155.25,9.55625252]
[1749482763321,22.53847639,155.29,155.25,9.55625252]
[1749482763539,4.81860918,155.28,155.26,9.55625252]
[1749482763736,6.43956468,155.29,155.26,9.55625252]
[1749482764817,11.25553488,155.29,155.26,9.55625252]
[1749482765138,11.2553683,155.29,155.26,9.55625252]
[1749482765439,6.43956468,155.29,155.26,9.55625252]
[1749482765733,6.43956468,155.29,155.27,9.55625252]
[1749482766733,11.25497069,155.29,155.27,9.55625252]
[1749482766932,6.43956468,155.29,155.27,9.55625252]
[1749482769733,4.81440304,155.3,155.27,9.55625252]
[1749482769918,4.81440304,155.3,155.28,9.55625252]
[1749482770125,12.83796615,155.31,155.28,9.55625252]
[1749482770531,14.37065556,155.3,155.26,9.55625252]
[1749482770739,14.37065556,155.3,155.25,18.64964886]
[1749482770740,6.43956468,155.29,155.25,9.55625252]
[1749482771057,6.43956468,155.29,155.26,9.55625252]
[1749482771348,4.81440304,155.3,155.28,9.55625252]
[1749482771510,4.81440304,155.31,155.29,9.55625252]
[1749482771851,11.25248467,155.33,155.29,9.55625252]
[1749482772145,4.81440304,155.32,155.29,9.55625252]
[1749482772723,11.25310556,155.32,155.29,9.55625252]
[1749482773046,6.43870252,155.32,155.29,9.55625252]
[1749482773218,11.25310556,155.32,155.29,9.55625252]
[1749482775351,6.43870252,155.32,155.29,9.55625252]
[1749482775521,11.25310556,155.32,155.29,9.55625252]
[1749482775713,6.43870252,155.32,155.29,9.55625252]
[1749482776146,11.25230852,155.32,155.29,9.55625252]
[1749482776318,6.43870252,155.32,155.29,9.55625252]
[1749482776523,4.81391941,155.31,155.29,9.55625252]
[1749482776827,4.81391941,155.32,155.29,9.55625252]
[1749482777037,4.81391941,155.31,155.29,9.55625252]
[1749482777228,4.81391941,155.32,155.29,9.55625252]
[1749482777427,6.43790639,155.33,155.29,9.55625252]
[1749482777428,4.81391941,155.31,155.29,9.55625252]
[1749482777626,4.81391941,155.32,155.29,9.55625252]
[1749482777826,4.81391941,155.31,155.29,9.55625252]
[1749482778028,4.81391941,155.32,155.29,9.55625252]
[1749482778240,4.81391941,155.31,155.29,9.55625252]
[1749482778549,4.81391941,155.32,155.29,9.55625252]
[1749482778751,4.81466174,155.31,155.29,9.55625252]
[1749482778953,6.43790639,155.33,155.29,9.55625252]
[1749482779125,4.81466017,155.32,155.29,9.55625252]
[1749482779320,4.81466017,155.31,155.29,9.55625252]
[1749482779631,6.43790639,155.33,155.29,9.55625252]
[1749482779848,4.81495038,155.32,155.29,9.55625252]
[1749482780028,6.43790639,155.33,155.3,9.55625252]
[1749482780226,4.8146577,155.32,155.3,9.55625252]
[1749482780430,6.43790639,155.33,155.3,9.55625252]
[1749482780752,11.25336129,155.32,155.3,9.55625252]
[1749482780924,6.43865681,155.32,155.3,9.55625252]
[1749482781720,6.43749195,155.34,155.3,9.55625252]
[1749482781917,4.81535957,155.33,155.3,9.55625252]
[1749482782145,4.81535957,155.32,155.3,9.55625252]
[1749482782446,6.43749195,155.34,155.3,9.55625252]
[1749482782752,4.8154904,155.33,155.3,9.55625252]
[1749482783049,4.8154904,155.32,155.3,9.55625252]
[1749482783259,22.53122183,155.34,155.3,9.55625252]
[1749482783431,4.81601057,155.33,155.29,9.55625252]
[1749482783625,4.81601057,155.32,155.29,9.55625252]
[1749482783930,32.08747435,155.34,155.29,9.55625252]
[1749482784144,4.81609575,155.33,155.29,9.55625252]
[1749482784360,4.81609575,155.32,155.3,9.55625252]
[1749482784649,22.53122183,155.34,155.3,9.55625252]
[1749482784858,4.81653522,155.33,155.3,9.55625252]
[1749482785054,4.81653522,155.32,155.31,9.55625252]
[1749482785241,4.81653522,155.33,155.31,9.55625252]
[1749482785434,6.43749195,155.34,155.3,9.55625252]
[1749482785646,4.81654373,155.33,155.3,9.55625252]
[1749482785985,6.43873543,155.31,155.29,9.55625252]
[1749482786154,6.43873543,155.31,155.27,29.04964886]
[1749482786328,6.43873543,155.31,155.27,19.95625252]
[1749482786634,4.81744479,155.3,155.27,10.4]
[1749482786838,4.81788213,155.29,155.27,10.4]
[1749482787060,9.55625252,155.3,155.24,18.64964886]
[1749482787263,4.81799553,155.29,155.26,9.55625252]
[1749482787439,4.81813967,155.28,155.26,9.55625252]
[1749482787638,4.81813967,155.29,155.26,9.55625252]
[1749482787963,6.43956468,155.29,155.26,9.55625252]
[1749482788859,22.53847639,155.29,155.25,9.55625252]
[1749482789042,4.81793042,155.28,155.25,9.55625252]
[1749482789239,32.09472891,155.29,155.25,9.55625252]
[1749482789432,4.81818233,155.28,155.25,9.55625252]
[1749482789632,32.09472891,155.29,155.25,9.55625252]
[1749482789842,15.99664667,155.27,155.23,19.93625252]
[1749482790063,4.81799377,155.26,155.23,19.93625252]
[1749482790241,32.09763205,155.27,155.23,19.93625252]
[1749482790440,4.81853008,155.26,155.23,19.93625252]
[1749482790765,4.81725786,155.26,155.23,19.93625252]
[1749482791368,6.44122383,155.25,155.23,19.93625252]
[1749482792956,6.44122383,155.25,155.23,10.38]
[1749482795556,6.44122383,155.25,155.23,19.93625252]
[1749482795772,6.44122383,155.25,155.24,9.55625252]
[1749482796065,6.38122383,155.25,155.23,10.38]
[1749482797662,6.44080896,155.26,155.23,10.38]
[1749482797871,9.55625252,155.25,155.23,10.38]
[1749482798054,9.55625252,155.25,155.21,9.55625252]
[1749482798364,22.54283137,155.26,155.19,47.48]
[1749482798365,9.55625252,155.24,155.19,47.48]
[1749482798575,9.55625252,155.24,155.2,9.55625252]
[1749482799874,6.44205372,155.23,155.2,9.55625252]
[1749482801572,6.44163875,155.24,155.2,9.55625252]
[1749482801970,32.10198815,155.24,155.2,9.55625252]
[1749482802478,32.10198815,155.24,155.19,19.93625252]
[1749482802978,36.91593044,155.24,155.19,19.93625252]
[1749482803775,32.10198815,155.24,155.19,19.93625252]
[1749482806587,9.55625252,155.23,155.19,19.93625252]
[1749482807390,6.44246875,155.22,155.19,19.93625252]
[1749482807966,6.44246875,155.22,155.19,10.38]
[1749482807967,9.55625252,155.21,155.19,10.38]
[1749482808292,9.55625252,155.21,155.15,127.4]
[1749482808293,9.55625252,155.2,155.16,9.55625252]
[1749482808665,9.55625252,155.21,155.16,9.55625252]
[1749482809579,6.44329896,155.2,155.16,9.55625252]
[1749482810298,22.55154638,155.2,155.16,9.55625252]
[1749482811096,9.55625252,155.19,155.15,19.93625252]
[1749482811397,9.55625252,155.18,155.15,10.38]
[1749482811696,22.55590642,155.17,155.13,9.55625252]
[1749482812072,32.11215894,155.17,155.13,9.55625252]
[1749482812311,32.11215894,155.17,155.12,9.55625252]
[1749482813102,9.55625252,155.16,155.12,9.55625252]
[1749482813391,32.11215894,155.17,155.11,47.48]
[1749482813561,32.11215894,155.17,155.12,9.55625252]
[1749482814198,9.55625252,155.16,155.11,47.48]
[1749482814372,9.55625252,155.16,155.11,57.03625252]
[1749482814695,9.55625252,155.16,155.11,19.93625252]
[1749482815265,6.44537544,155.15,155.11,25.34337221]
[1749482816388,6.44537544,155.15,155.12,14.96337221]
[1749482818591,6.44537544,155.15,155.11,10.38]
[1749482818968,21.40874765,155.15,155.11,25.34337221]
[1749482820592,39.72,155.17,155.14,14.96337221]
[1749482820909,6.44412939,155.18,155.16,14.96337221]
[1749482821073,6.44412939,155.18,155.17,14.96337221]
[1749482821267,6.44412939,155.18,155.13,0.14216157]
[1749482821268,6.44412939,155.18,155.16,14.96337221]
[1749482822475,6.44371415,155.19,155.17,14.96337221]
[1749482823274,42.10623805,155.22,155.17,14.96337221]
[1749482823584,42.59257221,155.24,155.2,14.96337221]
[1749482824506,6.44205372,155.23,155.2,14.96337221]
[1749482824966,6.44205372,155.23,155.21,14.96337221]
[1749482825966,6.44163875,155.24,155.21,14.96337221]
[1749482826977,6.44163875,155.24,155.2,14.96337221]
[1749482827169,6.44163875,155.24,155.21,14.96337221]
[1749482827672,14.96337221,155.25,155.22,14.96337221]
[1749482827673,6.44134905,155.25,155.22,14.96337221]
[1749482828094,6.44080896,155.26,155.22,14.96337221]
[1749482828591,6.44080896,155.26,155.23,14.96337221]
[1749482831872,6.44080896,155.26,155.24,14.96337221]
[1749482832791,6.44039415,155.27,155.24,14.96337221]
[1749482835178,6.44039415,155.27,155.23,14.96337221]
[1749482835605,6.44039415,155.27,155.24,14.96337221]
[1749482837479,12.81684964,155.28,155.25,14.96337221]
[1749482837788,6.44000223,155.28,155.26,14.96337221]
[1749482838602,6.43956468,155.29,155.26,14.96337221]
[1749482840803,6.43915003,155.3,155.26,14.96337221]
[1749482841878,21.40252224,155.3,155.25,14.96337221]
[1749482842294,6.43915003,155.3,155.27,14.96337221]
[1749482842727,6.43915003,155.3,155.26,14.96337221]
[1749482843930,6.43915003,155.3,155.27,14.96337221]
[1749482845800,6.43873543,155.31,155.26,10.34]
[1749482846062,21.40210764,155.31,155.26,25.30337221]
[1749482846909,6.43873543,155.31,155.27,14.96337221]
[1749482847424,6.43873543,155.31,155.28,14.96337221]
[1749482848232,6.43873543,155.31,155.27,14.96337221]
[1749482849510,21.40210764,155.31,155.26,25.30337221]
[1749482849741,37.49894622,155.31,155.24,10.34]
[1749482849950,22.53557401,155.31,155.27,14.96337221]
[1749482850544,6.43873543,155.31,155.27,14.96337221]
[1749482852145,21.40210764,155.31,155.27,14.96337221]
[1749482853133,14.96337221,155.3,155.26,14.96337221]
[1749482853654,37.49894622,155.31,155.26,14.96337221]
[1749482859027,22.53557401,155.31,155.26,14.96337221]
[1749482859326,37.49894622,155.31,155.26,14.96337221]
[1749482859521,22.53557401,155.31,155.26,14.96337221]
[1749482859724,37.49894622,155.31,155.26,14.96337221]
[1749482860256,6.43873543,155.31,155.29,14.96337221]
[1749482860762,6.43873543,155.31,155.28,14.96337221]
[1749482863349,12.85810738,155.32,155.25,106.34964886]
[1749482863650,8.07269795,155.32,155.29,14.96337221]
[1749482864657,12.85810738,155.32,155.28,14.96337221]
[1749482865658,12.85810738,155.32,155.29,14.96337221]
[1749482866046,6.43875556,155.31,155.29,14.96337221]
[1749482866359,11.22416499,155.31,155.28,14.96337221]
[1749482866556,6.43875556,155.31,155.28,14.96337221]
[1749482867161,11.22416499,155.31,155.28,14.96337221]
[1749482868077,4.78540943,155.3,155.26,14.96337221]
[1749482868280,4.78540943,155.29,155.26,14.96337221]
[1749482868458,4.78540943,155.3,155.26,14.96337221]
[1749482868773,4.78540943,155.29,155.26,14.96337221]
[1749482868974,4.78540943,155.28,155.26,14.96337221]
[1749482869182,4.78540943,155.3,155.26,14.96337221]
[1749482869351,19.74878164,155.3,155.26,14.96337221]
[1749482869550,4.78540943,155.29,155.25,14.96337221]
[1749482869747,4.78540943,155.28,155.24,25.30337221]
[1749482869948,6.44039415,155.27,155.24,25.30337221]
[1749482870168,6.44039415,155.27,155.24,10.34]
[1749482870169,14.96337221,155.26,155.24,10.34]
[1749482870371,19.74878164,155.26,155.22,14.96337221]
[1749482870556,19.74878164,155.26,155.21,14.96337221]
[1749482870868,19.77737963,155.25,155.2,25.30337221]
[1749482871058,14.96337221,155.25,155.21,14.96337221]
[1749482871368,19.77737963,155.25,155.21,14.96337221]
[1749482871570,14.96337221,155.25,155.2,10.34]
[1749482871774,14.96337221,155.25,155.21,14.96337221]
[1749482871775,4.81400742,155.24,155.21,14.96337221]
[1749482872161,6.44205372,155.23,155.21,14.96337221]
[1749482874150,6.44122383,155.25,155.22,14.96337221]
[1749482874490,11.25523125,155.25,155.22,14.96337221]
[1749482875051,1.5088,155.27,155.24,14.96337221]
[1749482875373,4.81465737,155.27,155.25,14.96337221]
[1749482875579,4.81465554,155.27,155.25,14.96337221]
[1749482875783,6.43997939,155.28,155.25,14.96337221]
[1749482876586,11.25455495,155.29,155.25,14.96337221]
[1749482877378,11.25455495,155.29,155.26,14.96337221]
[1749482877573,6.43968485,155.29,155.26,14.96337221]
[1749482877863,11.25455495,155.29,155.26,14.96337221]
[1749482878085,6.43968485,155.29,155.26,14.96337221]
[1749482878285,11.25455495,155.29,155.26,14.96337221]
[1749482879579,6.43968485,155.29,155.26,14.96337221]
[1749482879900,11.25585553,155.29,155.26,14.96337221]
[1749482880090,6.43968485,155.29,155.26,14.96337221]
[1749482880302,11.25585553,155.29,155.27,14.96337221]
[1749482880478,6.43968485,155.29,155.27,14.96337221]
[1749482880678,6.43929896,155.3,155.27,14.96337221]
[1749482880880,6.43929896,155.3,155.25,16.78121142]
[1749482880881,6.43820213,155.33,155.26,18.64964886]
[1749482881085,4.81617888,155.32,155.3,14.96337221]
[1749482881295,4.81398976,155.34,155.27,0.28432314]
[1749482881492,4.81398976,155.34,155.29,14.96337221]
[1749482881493,4.81398976,155.33,155.29,14.96337221]
[1749482881697,8.08957172,155.35,155.29,14.96337221]
[1749482881889,4.8146,155.34,155.3,14.96337221]
[1749482882099,11.25252279,155.33,155.3,14.96337221]
[1749482882278,6.43792279,155.33,155.3,14.96337221]
[1749482882607,11.25252279,155.33,155.3,14.96337221]
[1749482882904,6.43792279,155.33,155.3,14.96337221]
[1749482883783,6.43792279,155.33,155.31,14.96337221]
[1749482884204,6.43792279,155.33,155.28,6.439859]
[1749482884205,6.43792279,155.33,155.3,14.96337221]
[1749482884782,11.24960676,155.33,155.3,14.96337221]
[1749482885284,6.43792279,155.33,155.3,14.96337221]
[1749482885990,11.24930943,155.34,155.31,14.96337221]
[1749482887195,11.24930943,155.34,155.3,14.96337221]
[1749482888122,6.43762546,155.34,155.3,14.96337221]
[1749482889105,11.24449181,155.34,155.3,14.96337221]
[1749482889311,6.43762546,155.34,155.3,14.96337221]
[1749482890823,6.43762546,155.34,155.31,14.96337221]
[1749482893327,11.24384704,155.36,155.32,18.64964886]
[1749482893496,21.4003529,155.36,155.31,25.30337221]
[1749482893696,11.24019086,155.36,155.31,25.30337221]
[1749482893916,6.43698069,155.36,155.32,14.96337221]
[1749482894114,6.43698069,155.36,155.33,14.96337221]
[1749482894514,6.43698069,155.36,155.31,16.77870303]
[1749482894515,6.43698069,155.36,155.32,14.96337221]
[1749482894897,14.96337221,155.34,155.31,10.34]
[1749482895222,37.49201098,155.36,155.31,25.30337221]
[1749482895428,37.49201098,155.36,155.32,14.96337221]
[1749482896111,37.49201098,155.36,155.31,25.30337221]
[1749482896301,42.29522115,155.36,155.31,25.30337221]
[1749482896502,37.49201098,155.36,155.31,25.30337221]
[1749482896708,14.96337221,155.35,155.31,25.30337221]
[1749482897022,37.49201098,155.36,155.31,25.30337221]
[1749482897328,6.43749195,155.34,155.31,25.30337221]
[1749482899114,6.43707756,155.35,155.31,25.30337221]
[1749482899434,22.52977147,155.35,155.31,25.30337221]
[1749482900633,37.49314368,155.35,155.31,25.30337221]
[1749482900934,22.52977147,155.35,155.31,25.30337221]
[1749482901101,37.49314368,155.35,155.31,25.30337221]
[1749482901304,22.52977147,155.35,155.31,25.30337221]
[1749482904136,31.05606612,155.35,155.31,25.30337221]
[1749482905333,37.49314368,155.35,155.31,25.30337221]
[1749482905518,22.52977147,155.35,155.31,14.96337221]
[1749482906037,6.43707756,155.35,155.31,14.96337221]
[1749482906335,6.43707756,155.35,155.29,10.32]
[1749482906336,6.43707756,155.35,155.32,14.96337221]
[1749482906717,37.49314368,155.35,155.3,14.96337221]
[1749482911518,22.52977147,155.35,155.31,14.96337221]
[1749482917222,22.52977147,155.35,155.31,9.55189574]
[1749482917648,9.55189574,155.33,155.28,18.64964886]
[1749482917822,9.55189574,155.31,155.27,10.32]
[1749482918025,14.35510591,155.31,155.27,10.32]
[1749482918257,14.35510591,155.31,155.27,19.87189574]
[1749482918545,9.55189574,155.31,155.27,19.87189574]
[1749482919058,6.43915003,155.3,155.27,19.87189574]
[1749482919259,6.43915003,155.3,155.27,25.25237125]
[1749482919759,11.25458667,155.3,155.27,25.25237125]
[1749482919957,6.43915003,155.3,155.27,25.25237125]
[1749482921134,11.25439013,155.3,155.27,25.25237125]
[1749482921454,6.43915003,155.3,155.27,25.25237125]
[1749482921658,6.43873543,155.31,155.27,25.25237125]
[1749482921839,4.8180151,155.3,155.27,25.25237125]
[1749482922030,6.43873543,155.31,155.27,25.25237125]
[1749482922232,4.81778275,155.3,155.27,25.25237125]
[1749482922560,6.43873543,155.31,155.27,25.25237125]
[1749482922863,4.81855263,155.3,155.27,25.25237125]
[1749482923042,6.43873543,155.31,155.27,25.25237125]
[1749482923242,4.81856235,155.3,155.27,25.25237125]
[1749482923560,6.43873543,155.31,155.27,14.93237125]
[1749482923732,6.43956468,155.29,155.27,14.93237125]
[1749482924467,6.43956468,155.29,155.26,10.32]
[1749482924631,6.43956468,155.29,155.26,25.25237125]
[1749482925346,6.43956468,155.29,155.27,14.93237125]
[1749482925743,6.43832088,155.32,155.28,14.93237125]
[1749482925956,6.43832088,155.32,155.26,10.32]
[1749482925957,4.81925803,155.31,155.29,14.93237125]
[1749482926129,8.0730057,155.33,155.3,14.93237125]
[1749482926333,6.4380057,155.33,155.31,14.93237125]
[1749482927164,4.81825432,155.34,155.31,14.93237125]
[1749482927359,6.43684178,155.36,155.33,14.93237125]
[1749482927532,4.81795767,155.35,155.33,14.93237125]
[1749482927869,4.81795767,155.34,155.32,14.93237125]
[1749482928034,21.36921303,155.36,155.32,14.93237125]
[1749482928235,19.75040813,155.35,155.31,10.32]
[1749482928459,4.81803688,155.34,155.31,10.32]
[1749482928683,14.93237125,155.35,155.31,25.25237125]
[1749482928684,4.81803688,155.33,155.31,25.25237125]
[1749482928954,37.46087111,155.36,155.31,25.25237125]
[1749482929167,6.43749195,155.34,155.31,25.25237125]
[1749482929459,4.81818094,155.33,155.31,25.25237125]
[1749482929663,6.43749195,155.34,155.31,25.25237125]
[1749482929960,6.43749195,155.34,155.32,14.93237125]
[1749482930260,4.81794424,155.33,155.31,10.32]
[1749482930434,6.43749195,155.34,155.32,14.93237125]
[1749482930636,4.81803388,155.33,155.32,14.93237125]
[1749482931342,6.43749195,155.34,155.32,14.93237125]
[1749482931543,4.81784748,155.33,155.32,14.93237125]
[1749482932062,6.43749195,155.34,155.32,14.93237125]
[1749482933139,6.43666323,155.36,155.32,14.93237125]
[1749482933338,4.81765656,155.35,155.32,14.93237125]
[1749482933540,4.81765656,155.34,155.32,14.93237125]
[1749482933839,6.43666323,155.36,155.32,14.93237125]
[1749482934039,4.81755919,155.35,155.32,14.93237125]
[1749482934238,4.81755919,155.34,155.32,14.93237125]
[1749482934550,6.43749131,155.35,155.32,14.93237125]
[1749482934764,4.81754366,155.34,155.32,14.93237125]
[1749482934959,6.43749131,155.35,155.32,14.93237125]
[1749482935263,4.81741459,155.34,155.31,10.32]
[1749482935458,6.43749131,155.35,155.32,14.93237125]
[1749482935760,4.81730388,155.34,155.32,14.93237125]
[1749482935967,6.43749131,155.35,155.32,14.93237125]
[1749482936142,4.81735532,155.34,155.32,14.93237125]
[1749482936342,6.43749131,155.35,155.32,14.93237125]
[1749482936652,4.81724872,155.34,155.33,14.93237125]
[1749482937258,4.81724872,155.35,155.33,14.93237125]
[1749482937452,6.43678264,155.36,155.33,14.93237125]
[1749482937646,6.43678264,155.36,155.32,33.58202011]
[1749482937647,4.81674325,155.35,155.32,33.58202011]
[1749482937846,6.43678264,155.36,155.32,33.58202011]
[1749482938057,4.81674481,155.35,155.32,33.58202011]
[1749482938268,4.816824,155.34,155.32,33.58202011]
[1749482938572,6.43678264,155.36,155.32,33.58202011]
[1749482938865,4.81664883,155.35,155.32,14.93237125]
[1749482939064,4.81664883,155.34,155.31,10.32]